Workbook

Sheet Pub Plan
B2: Title | D2: Somebody Telling Somebody Else: Toward a Rhetorical Poetics of Narrative | U2: Type
B3: Series | D3: Theory and Interpretation of Narrative | T3: 1 | U3: Creative Writing
B4: Type | D4: Average | T4: 2 | U4: Average
B5: Wordcount | D5: 113589 | T5: 3 | U5: Complex
B6: Pages | D6: 310
B7: Trim | D7: 6x9 | I7: Print for Stock GM | K7: =(K14+K16)/(K8+K16) -> 0.6583621643 | Q7: POD GM | R7: =(R14+R16)/(R8+R16) -> 
D8: Cloth | E8: Paper | I8: Total revenues | K8: =SUM(Y17,Y18) -> 23965.9896 | R8: =SUM(Y17,Y18) -> 23965.9896
B9: Copies printed | D9: 65 | E9: 1200
B10: Frees | D10: 5 | E10: 50 | I10: Inflated costs | K10: =(D16+D17+E16+E17)*1.02 -> 7054.889976 | R10: =(F16+D17+G16)*1.02 -> 
B11: Price | D11: 99.95 | E11: 29.95 | U11: Pb var royalty rate | V11: =IF(E13=0,0,IF(E13>E27+E28+E29,(((E13-E27-E28-E29)*B30)+(E29*B29)+(E28*B28)+(E27*B27))/E13,IF(E13>E27+E28,(((E13-E27-E28)*B29)+(B28*E28)+(B27*E27))/E13,IF(E13>E27,((((E13-E27)*B28)+(E27*B27))/E13),B27)))) -> 0.04333333333
B12: Discount | D12: Short | E12: Short | I12: Total royalties | K12: =SUM(Y17*V21,Y18*V13) -> 1132.798842 | R12: =SUM(Y17*V21,Y18*V13) -> 1132.798842 | U12: Pb ser royalty rate | V12: =IF(ISBLANK(D3),0,VLOOKUP(D3,$X$28:$AD$40,7)) -> 0.01 | Z12: 1 | AA12: Short | AB12: 0.7273 | AC12: =SUM(AB12+0.2727) -> 1
B13: Projected Sales | D13: 60 | E13: 900 | U13: Pb royalty rate | V13: =SUM(V11:V12) -> 0.05333333333 | Z13: 2 | AA13: Trade | AB13: 0.557 | AC13: =AB13+0.443 -> 1
F14: HC POD | G14: Paper POD | I14: Contribution | K14: =K8-K10-K12 -> 15778.30078 | R14: =R8-R10-R12 -> 
B15: Unit Cost | D15: =IF(ISERROR(D16/D9),"",D16/D9) -> 11.32215385 | E15: =IF(ISERROR(E16/E9),"",E16/E9) -> 2.4925 | F15: =IF(D9="","",IF(D7="7x10",6+(D6*0.02),6+(D6*0.015))) -> 10.65 | G15: =IF(E9="","",IF(E9<100,0.9*(6+(D6*0.015)),IF(E9<250,0.85*(6+(D6*0.015)),IF(E9<500,0.75*(6+(D6*0.015)),"Use Offset")))) -> Use Offset | U15: Cloth discount | V15: =IF(ISBLANK(D11),0,VLOOKUP(D12,AA12:AB13,2)) -> 0.7273
B16: Manufacturing | D16: 735.94 | E16: 2991 | F16: =IF(ISERROR(F15*D13),"",F15*D13) -> 639 | G16: =IF(ISERROR(G15*E9),"",G15*E9) ->  | I16: Subsidy | U16: Paper discount | V16: =IF(ISBLANK(E11),0,VLOOKUP(E12,AA12:AB13,2)) -> 0.7273
B17: Non-manufacturing costs | D17: =IF(D6="","",IF(D4="Creative Writing", (D6*5.12)+(((D5/250)*2)*1.15)+H18, IF(D4="Average", (D6*4.66)+(((D5/250)*2)*1.15)+H18, (D6*6.34)+(((D5/250)*2)*1.15)+H18))) -> 3189.6188 | X17: Cloth revenues | Y17: =(D13)*D11*V15 -> 4361.6181
B18: Copyediting: | D18: =IF(D5="","",(((D5/250)*2)*1.15)) -> 1045.0188 | E18: Typesetting: | F18: =IF(D6="","",IF(D4="Creative Writing",D6*5.12,IF(D4="Average",D6*4.66,D6*6.34))) -> 1444.6 | G18: Design: | H18: 700 | I18: To reach 65% | K18: =IF(K7<0.65,((K10+K12)*(1/(1-0.65)))-K8-K16,0) -> 0 | R18: =IF(R7<0.65,((R10+R12)*(1/(1-0.65)))-R8-R16,0) ->  | X18: Paper revenues | Y18: =(E13)*E11*V16 -> 19604.3715
D19: Royalties | U19: Cl var royalty rate | V19: =IF(D13=0,0,IF(D13>E21+E22+E23,((D13-E21-E22-E23)*B24+(E23*B23)+(E22*B22)+(E21*B21))/D13,IF(D13>E21+E22,((D13-E21-E22)*B23+(B22*E22)+(B21*E21))/D13,IF(D13>E21,(((D13-E21)*B22+(E21*B21))/D13),B21)))) -> 0
B20: Cloth | U20: Cl ser royalty rate | V20: =IF(ISBLANK(D3),0,VLOOKUP(D3,X28:AD40,6)) -> 0.02
B21: 0 | D21: on the first | E21: 200 | U21: Cl royalty rate | V21: =SUM(V19:V20) -> 0.02 | W21: Cloth | X21: =CONCATENATE("CLOTH: ",IF(ISBLANK(B21),"",CONCATENATE(B21*100,"% on the first ",E21," copies sold, ")),IF(ISBLANK(B22),"",CONCATENATE("rising to ",B22*100,"% on the next ",E22," copies sold, ")),IF(ISBLANK(B23),"",CONCATENATE("rising to ",B23*100,"% on the next ",E23," copies sold, ")),IF(AND(ISBLANK(B21),ISBLANK(B22),ISBLANK(B23),NOT(ISBLANK(B24))),CONCATENATE(B24*100,"% on all copies sold."),""),IF(AND(ISBLANK(B21),ISBLANK(B22),ISBLANK(B23),ISBLANK(B24)),"No royalties.",""),IF(AND(NOT(ISBLANK(B24)),NOT(ISBLANK(B21))),CONCATENATE("and ",B24*100,"% on all copies sold thereafter."),"")) -> CLOTH: 0% on the first 200 copies sold, and 2% on all copies sold thereafter.
D22: on the next | W22: Paper | X22: =CONCATENATE("PAPER: ",IF(ISBLANK(B27),"",CONCATENATE(B27*100,"% on the first ",E27," copies sold, ")),IF(ISBLANK(B28),"",CONCATENATE("rising to ",B28*100,"% on the next ",E28," copies sold, ")),IF(ISBLANK(B29),"",CONCATENATE("rising to ",B29*100,"% on the next ",E29," copies sold, ")),IF(AND(ISBLANK(B27),ISBLANK(B28),ISBLANK(B29),NOT(ISBLANK(B30))),CONCATENATE(B30*100,"% on all copies sold."),""),IF(AND(ISBLANK(B27),ISBLANK(B28),ISBLANK(B29),ISBLANK(B30)),"No royalties.",""),IF(AND(NOT(ISBLANK(B30)),NOT(ISBLANK(B27))),CONCATENATE("and ",B30*100,"% on all copies sold thereafter."),"")) -> PAPER: 2% on the first 200 copies sold, and 5% on all copies sold thereafter.
D23: on the next | W23: Electronic | X23: =CONCATENATE("ELECTRONIC: ",IF(ISBLANK(B33),"",CONCATENATE(B33*100,"% on the first ",E33," copies sold, ")),IF(ISBLANK(B34),"",CONCATENATE("rising to ",B34*100,"% on the next ",E34," copies sold, ")),IF(ISBLANK(B35),"",CONCATENATE("rising to ",B35*100,"% on the next ",E35," copies sold, ")),IF(AND(ISBLANK(B33),ISBLANK(B34),ISBLANK(B35),NOT(ISBLANK(B36))),CONCATENATE(B36*100,"% on all copies sold."),""),IF(AND(ISBLANK(B33),ISBLANK(B34),ISBLANK(B35),ISBLANK(B36)),"No royalties.",""),IF(AND(NOT(ISBLANK(B36)),NOT(ISBLANK(B33))),CONCATENATE("and ",B36*100,"% on all copies sold thereafter."),"")) -> ELECTRONIC: 10% on all copies sold.
B24: 0.02 | D24: thereafter
B26: Paper | X26: Series | AC26: cloth | AD26: pb
B27: 0.02 | D27: on the first | E27: 200 | R27: POD | U27: POD Trims | W27: 0 | X27: No Series | AC27: 0 | AD27: 0
D28: on the next | W28: 1 | X28: Black Performance and Cultural Criticism | AC28: 0.02 | AD28: 0.01
D29: on the next | Q29: Small | R29: Pgs | S29: Cover | T29: Page | W29: 2 | X29: Classical Memories/Modern Identities | AC29: 0.02 | AD29: 0.01
B30: 0.05 | D30: thereafter | R30: 18-46 | S30: 1.48 | U30: small | V30: 6x9 | W30: 3 | X30: Contemporary Latino Writers and Directors | AC30: 0.01 | AD30: 0.01
R31: 48-106 | S31: 2.3 | U31: large | V31: 7x10 | W31: 4 | X31: Early Modern Drama Texts | AC31: 0.01 | AD31: 0.01
B32: Electronic | R32: 108+ | S32: 0.9 | T32: 0.013 | U32: small | V32: 6.14x9.21 | W32: 5 | X32: Interventions | AC32: 0.02 | AD32: 0.01
D33: on the first | V33: Other | W33: 6 | X33: Literature, Religion, and Postsecular Studies | AC33: 0.01 | AD33: 0.01
D34: on the next | Q34: Large | R34: 18-46 | S34: 2.09 | W34: 7 | X34: Studies in Comics and Cartoons | AC34: 0.015 | AD34: 0.0075
D35: on the next | R35: 48-106 | S35: 3.24 | W35: 8 | X35: Studies in Germanic Linguistics | AC35: 0.01 | AD35: 0.0075
B36: 0.1 | D36: thereafter | R36: 108+ | S36: 1.3 | T36: 0.018 | W36: 9 | X36: Text and Context | AC36: 0.02 | AD36: 0.01
W37: 10 | X37: Theoretical Developments in Hispanic Linguistics | AC37: 0.01 | AD37: 0.01
W38: 11 | X38: Theory and Interpretation of Narrative | AC38: 0.02 | AD38: 0.01
W39: 12 | X39: Transoceanic Series | AC39: 0.015 | AD39: 0.015
W40: 13 | X40: Victorian Critical Interventions | AC40: 0.02 | AD40: 0.01

Sheet Contract Request
A1: CONTRACT REQUEST FORM
B3: Author(s)' full name, address(es), and SSN(s) (if known) | D3: James Phelan Ohio State University 164 W. 17th Ave. Columbus, Ohio 43210-1370 614/292-6065, 614/292-6669 phelan.1@osu.edu
AA4: Completion
B5: Title | D5: =IF(ISBLANK('Pub Plan'!D2:M2),"",'Pub Plan'!D2:M2) -> Somebody Telling Somebody Else: Toward a Rhetorical Poetics of Narrative | AA5: Revision
AA6: Standard
B7: Contingent on
B9: Series | D9: Theory and Interpretation of Narrative
B11: Delivery | D11: 2016-10-28
B13: Length | D13: No more than 113,000 words and 12 halftone illustrations.
B15: Royalties | D15: =CONCATENATE('Pub Plan'!X21,CHAR(10),'Pub Plan'!X22,CHAR(10),'Pub Plan'!X23) -> CLOTH: 0% on the first 200 copies sold, and 2% on all copies sold thereafter. PAPER: 2% on the first 200 copies sold, and 5% on all copies sold thereafter. ELECTRONIC: 10% on all copies sold.
B17: Advance
B19: Comp copies | D19: 10 | E19: if cloth
D20: 5 | E20: if paperback
D21: 2 | E21: cloth if simultaneous pb
D22: 8 | E22: paper if simultaneous pb
B24: Additional contract provisions
B26: Notes
